Cogmind - Beta 10.2 @@@ ROGUE MODE // 2021.10.02 @ 09:10:19 Player: Kom Result: Destroyed by L-41 Fighter with Axe Performance ------------- Evolutions (1) 500 Regions Visited (5) 1000 Robots Destroyed (24) 120 Value Destroyed (873) 873 Prototype IDs (1) 20 Alien Tech Used (0) 0 Bonus (816) 816 TOTAL SCORE: 3329 Bonus ------- Follower Combat Kills 216 Met Imprinter 300 Was Imprinted 300 Cogmind --------- Core Integrity 0/400 Matter 300/300 Energy 100/100 System Corruption 3% Temperature Cool (0) Movement Core (100) Ox1 Location -6/Proximity Caves Parts ------- > --- POWER (2) -------- (None) > --- PROPULSION (3) --- (None) > --- UTILITY (2) ------ Small Storage Unit > --- WEAPON (2) ------- (None) > --- INVENTORY (6) ---- Medium Matter Pod (100) Field Recycling Unit (0) Field Recycling Unit (0) Peak State ------------ > --- POWER ------------ Light Nuclear Core Micro Fission Core > --- PROPULSION ------- Carbon-fiber Leg Carbon-fiber Leg Carbon-fiber Leg > --- UTILITY ---------- Small Storage Unit Hacking Drone Bay > --- WEAPON ----------- Axe CR-A16's Pointy Stick > --- INVENTORY -------- Medium Matter Pod Field Recycling Unit Field Recycling Unit Axe [Rating: 35] Favorites ----------- Power Ion Engine Engine Ion Engine Power Core Light Nuclear Core Propulsion Aluminum Leg Leg Aluminum Leg Utility Small Storage Unit Device Hacking Drone Bay Storage Small Storage Unit Weapon Axe Energy Gun Medium Laser Launcher Grenade Launcher Slashing Weapon Axe Piercing Weapon CR-A16's Pointy Stick Build | -11 -10 -9 -9 -7 -6 ------- Run | Scr Mat Mat Min Zio Pro Slots Evolved 2 | . . 2 . . . Power 1 | . . 1 . . . Propulsion 1 | . . 1 . . . Utility . | . . . . . . Weapon . | . . . . . . Parts Attached 25 | 5 2 9 . 3 6 Power 4 | 1 . 2 . . 1 Engine 2 | 1 . 1 . . . Core 2 | . . 1 . . 1 Reactor . | . . . . . . Propulsion 9 | 2 . 3 . 1 3 Treads . | . . . . . . Leg 9 | 2 . 3 . 1 3 Wheel . | . . . . . . Hover . | . . . . . . Flight . | . . . . . . Utility 3 | 1 1 . . 1 . Device 2 | . 1 . . 1 . Storage 1 | 1 . . . . . Processor . | . . . . . . Hackware . | . . . . . . Protection . | . . . . . . Artifact . | . . . . . . Weapon 9 | 1 1 4 . 1 2 Energy Gun 2 | 1 . 1 . . . Energy Cannon . | . . . . . . Ballistic Gun . | . . . . . . Ballistic Cannon . | . . . . . . Launcher 2 | . 1 1 . . . Special Weapon . | . . . . . . Impact Weapon . | . . . . . . Slashing Weapon 4 | . . 2 . . 2 Piercing Weapon 1 | . . . . 1 . Special Melee Weapon . | . . . . . . Unidentified Prototypes 1 | . . . . 1 . Parts Lost 16 | . . 4 . . 12 Power 3 | . . . . . 3 Propulsion 6 | . . 2 . . 4 Utility 1 | . . . . . 1 Weapon 6 | . . 2 . . 4 Highest Loss Streak 8 | . . 2 . . 8 Average Slot Usage (%) 93 | . 90 80 100 100 89 Engine 11 | . 14 15 11 11 3 Core 8 | . . 1 11 11 16 Leg 29 | . 28 20 33 33 30 Device 10 | . 6 11 11 11 8 Storage 11 | . 14 11 11 11 11 Energy Gun 2 | . 14 2 . . . Launcher 2 | . 12 4 . . . Slashing Weapon 13 | . . 13 22 17 8 Piercing Weapon 3 | . . . . 4 10 Naked Turns . | . . . . . . Heaviest Build 28 | 11 22 28 28 28 21 Greatest Support 45 | 20 20 30 30 33 45 Greatest Overweight (x) 2 | 1 1 2 . . 1 Average Overweight (x) . | . . . . . . Largest Inventory Capacity 6 | 6 6 6 6 6 6 Average Capacity 5 | 4 6 6 6 6 6 Most Carried 6 | 3 6 6 5 6 6 Average Carried 4 | 1 4 4 5 5 5 Final Capacity 6 | 6 6 6 6 6 6 Final Carried 6 | 3 6 5 5 6 3 Class Distribution -------------------- 55% | Scavenger-Mutant 44% | Mutant Dominant Class ---------------- Mutant | -10/Materials Mutant | -9/Materials Scavenger-Mutant | -9/Mines Scavenger-Mutant | -7/Zion Scavenger-Mutant | -6/Proximity Caves Resources | -11 -10 -9 -9 -7 -6 ----------- Run | Scr Mat Mat Min Zio Pro Matter Collected 671 | 250 43 208 . 43 127 Remotely . | . . . . . . Salvage Created 923 | . 146 464 . . 313 Parts 42 | . 7 25 . . 10 Haulers Intercepted . | . . . . . . Recyclers Shooed . | . . . . . . Parts Field Recycled . | . . . . . . Retrieved Matter . | . . . . . . Parts Self-Destructed 12 | . . . . . 12 Prevented 9 | . . . . . 9 Kills | -11 -10 -9 -9 -7 -6 ------- Run | Scr Mat Mat Min Zio Pro Combat Hostiles Destroyed 20 | . 4 11 . . 5 Melee 12 | . . 7 . . 5 AOE 8 | . 4 4 . . . Classes Destroyed 7 | . 2 3 . . 2 Worker 2 | . . 2 . . . Recycler 1 | . . 1 . . . Watcher 1 | . 1 . . . . Grunt 16 | . 4 9 . . 3 Brawler 1 | . . . . . 1 Duelist 1 | . . . . . 1 Sentry 2 | . . 2 . . . Best Kill Streak 5 | . 5 4 . . 4 Combat Bots Only 4 | . 4 3 . . 4 Max Kills in Single Turn 2 | . 1 2 . . 1 Gunslinging . | . . . . . . Exploded 2 | . 1 2 . . . Melee 1 | . . 1 . . 1 Uniques/NPCs Destroyed . | . . . . . . Combat | -11 -10 -9 -9 -7 -6 -------- Run | Scr Mat Mat Min Zio Pro Damage Taken 1932 | . 94 593 . . 1245 Core 479 | . 44 163 . . 272 Absorbed by Shields . | . . . . . . Core Remaining (%) 91 | 100 82 . . . . Volleys Fired 19 | . 10 9 . . . Largest 1 | . 1 1 . . . Hottest 50 | . 50 33 . . . Shots Fired 19 | . 10 9 . . . Gun 4 | . 4 . . . . Cannon . | . . . . . . Launcher 15 | . 6 9 . . . Special . | . . . . . . Kinetic . | . . . . . . Thermal 4 | . 4 . . . . Explosive 15 | . 6 9 . . . Electromagnetic . | . . . . . . Robot Hit Streak 4 | . 1 4 . . . Robot Miss Streak 3 | . 3 1 . . . Penetration Max . | . . . . . . Secondary Targets . | . . . . . . Shots Hit Robots 42 | . 3 27 . . 12 Core Hits 46 | . 9 25 . . 12 Critical Hits 2 | . . 1 . . 1 Critical Kills 1 | . . . . . 1 Critical Parts Destroyed 1 | . . 1 . . . Melee Attacks 44 | . . 25 . . 19 Impact . | . . . . . . Slashing 26 | . . 25 . . 1 Piercing 18 | . . . . . 18 Sneak Attacks . | . . . . . . Combat Hostiles . | . . . . . . Follow-up Attacks 4 | . . 4 . . . Damage Inflicted 1840 | . 285 1220 . . 335 Guns 26 | . 26 . . . . Cannons . | . . . . . . Explosions 757 | . 259 498 . . . Melee 1055 | . . 722 . . 333 Ramming 2 | . . . . . 2 Kinetic . | . . . . . . Thermal 26 | . 26 . . . . Explosive 757 | . 259 498 . . . Electromagnetic . | . . . . . . Impact . | . . . . . . Slashing 749 | . . 722 . . 27 Piercing 306 | . . . . . 306 Highest Corruption 3 | . . . . . 3 Average Corruption 1 | . . . . . 1 Corruption Purged . | . . . . . . Overload Shots . | . . . . . . Overflow Damage 66 | . . 66 . . . Projectiles . | . . . . . . Explosions . | . . . . . . Melee 66 | . . 66 . . . Knockbacks . | . . . . . . Impact . | . . . . . . Kinetic . | . . . . . . Secondary . | . . . . . . Self-Inflicted Damage 46 | . 19 26 . . 1 Shots 2 | . 1 1 . . . Rammed 2 | . . . . . 2 Targets Rammed 2 | . . . . . 2 Kicked . | . . . . . . Crushed . | . . . . . . Highest Temperature 20 | . 20 2 . . 14 Average Temperature 7 | . 8 1 . . 7 Received Heat Transfer 470 | . 42 243 . . 185 Siege Activations . | . . . . . . Robots Corrupted . | . . . . . . Combat Hostiles . | . . . . . . Parts Fried . | . . . . . . Impact Corruptions . | . . . . . . Robots Melted . | . . . . . . Combat Hostiles . | . . . . . . Parts Melted . | . . . . . . Heat Transferred 74 | . 74 . . . . Parts Sabotaged . | . . . . . . Parts Stolen . | . . . . . . Parts Stripped . | . . . . . . Power Chain Reactions . | . . . . . . Missiles Intercepted . | . . . . . . Alert | -11 -10 -9 -9 -7 -6 ------- Run | Scr Mat Mat Min Zio Pro Peak Influence 413 | . 191 413 160 . . Initial 160 | . . 80 160 . . Average 170 | . 72 249 160 . . Maximum Alert Level 2 | . . 2 . . . Low Security (%) 65 | 100 100 38 100 . . Level 1 31 | . . 56 . . . Level 2 3 | . . 5 . . . Level 3 . | . . . . . . Level 4 . | . . . . . . Level 5 . | . . . . . . High Security . | . . . . . . Max Security . | . . . . . . Squads Dispatched 5 | . . 4 . . 1 Investigation 2 | . . 2 . . . Extermination . | . . . . . . Reinforcement 2 | . . 2 . . . Assault 1 | . . . . . 1 Garrison . | . . . . . . Intercept . | . . . . . . Construction Impeded 1 | . . 1 . . . Haulers Reinforced . | . . . . . . Stealth | -11 -10 -9 -9 -7 -6 --------- Run | Scr Mat Mat Min Zio Pro Distress Signals 2 | . 1 1 . . . Communications Jammed . | . . . . . . Distress Signals . | . . . . . . Times Spotted 49 | . 7 15 . . 27 Peak Tracking Total 11 | . 3 5 . . 11 Tactical Retreats 5 | . . 1 . . 4 Traps | -11 -10 -9 -9 -7 -6 ------- Run | Scr Mat Mat Min Zio Pro Traps Triggered 1 | . . 1 . . . Indirectly . | . . . . . . Trap Hack Attempts . | . . . . . . Triggered . | . . . . . . Disarmed . | . . . . . . Reprogrammed . | . . . . . . Reused . | . . . . . . Traps Extracted . | . . . . . . Installed . | . . . . . . Triggered . | . . . . . . Machines | -11 -10 -9 -9 -7 -6 ---------- Run | Scr Mat Mat Min Zio Pro Machines Disabled 3 | . 3 . . . . Max in Single Turn 1 | . 1 . . . . Machines Sabotaged . | . . . . . . Garrisons Compromised . | . . . . . . Overloaded Fab Kills . | . . . . . . Fab Network Shutdowns . | . . . . . . Hacking | -11 -10 -9 -9 -7 -6 --------- Run | Scr Mat Mat Min Zio Pro Machines Accessed 7 | . 4 3 . . . Terminals 6 | . 3 3 . . . Fabricators . | . . . . . . Repair Stations . | . . . . . . Recycling Units 1 | . 1 . . . . Scanalyzers . | . . . . . . Garrison Access . | . . . . . . Total Hacks 20 | . 9 11 . . . Successful 13 | . 6 7 . . . Failed 7 | . 3 4 . . . Catastrophic . | . . . . . . Database Lockouts . | . . . . . . Manual . | . . . . . . Terminals 18 | . 7 11 . . . Fabricators . | . . . . . . Repair Stations . | . . . . . . Recycling Units 2 | . 2 . . . . Scanalyzers . | . . . . . . Garrison Access . | . . . . . . Terminal Hacks 11 | . 4 7 . . . Record 7 | . 3 4 . . . Dispatch Records 2 | . . 2 . . . Maintenance Status 1 | . 1 . . . . Transport Status 1 | . . 1 . . . Fabricator Hacks . | . . . . . . Repair Station Hacks . | . . . . . . Recycling Unit Hacks 2 | . 2 . . . . Report Inventory 1 | . 1 . . . . Retrieve Matter 1 | . 1 . . . . Scanalyzer . | . . . . . . Garrison Access Hacks . | . . . . . . Unauthorized Hacks . | . . . . . . Terminals . | . . . . . . Fabricators . | . . . . . . Repair Stations . | . . . . . . Recycling Units . | . . . . . . Scanalyzers . | . . . . . . Garrison Access . | . . . . . . Data Cores Recovered . | . . . . . . Used . | . . . . . . Hacking Detections 6 | . 3 3 . . . Full Trace Events 3 | . 1 2 . . . Feedback Events . | . . . . . . Feedback Blocked . | . . . . . . Robot Schematics Acquired . | . . . . . . Robots Built . | . . . . . . Matter . | . . . . . . Time . | . . . . . . Total Robot Build Rating . | . . . . . . Part Schematics Acquired . | . . . . . . Parts Built . | . . . . . . Matter . | . . . . . . Time . | . . . . . . Total Part Build Rating . | . . . . . . Parts Repaired . | . . . . . . Time . | . . . . . . Parts Recycled . | . . . . . . Recycled Matter . | . . . . . . Retrieved Matter . | . . . . . . Retrieved Components . | . . . . . . Parts Scanalyzed . | . . . . . . Part Schematics Acquired . | . . . . . . Parts Damaged . | . . . . . . Bothacking | -11 -10 -9 -9 -7 -6 ------------ Run | Scr Mat Mat Min Zio Pro Used RIF Installer . | . . . . . . Robots Hacked . | . . . . . . Non-combat . | . . . . . . Combat . | . . . . . . Robot Hacks Applied . | . . . . . . Relay Couplers Released . | . . . . . . Robots Rewired . | . . . . . . Allies Hacked . | . . . . . . Hacks Repelled . | . . . . . . Allies | -11 -10 -9 -9 -7 -6 -------- Run | Scr Mat Mat Min Zio Pro Total Allies 4 | . . . . 4 . Largest Group 4 | . . . . 4 4 Highest-Rated Group 151 | . . . . 151 151 Highest-Rated Ally 39 | . . . . 39 39 Total Orders . | . . . . . . Ally Attacks 30 | . . . . . 30 Total Damage 1183 | . . . . . 1183 Kills 6 | . . . . . 6 Allies Corrupted . | . . . . . . Allies Melted . | . . . . . . Intel | -11 -10 -9 -9 -7 -6 ------- Run | Scr Mat Mat Min Zio Pro Robot Analysis Total . | . . . . . . Derelict Logs Recovered 1 | . . . . 1 . Drone Launches . | . . . . . . Drone Recoveries . | . . . . . . Exploration | -11 -10 -9 -9 -7 -6 ------------- Run | Scr Mat Mat Min Zio Pro Turns Passed 1945 | 58 217 396 39 985 250 Spaces Moved 1327 | 45 143 201 33 768 137 Core 20 | 19 . . . . 1 Treads . | . . . . . . Legs 1307 | 26 143 201 33 768 136 Wheels . | . . . . . . Hover . | . . . . . . Flight . | . . . . . . Fastest Speed 50 | 50 120 120 120 120 100 Average Speed 125 | 101 131 149 120 120 119 Slowest Speed 180 | 120 150 180 120 120 120 Overloaded Moves . | . . . . . . Propulsion Burnouts . | . . . . . . Robots Hopped . | . . . . . . Cave-ins Triggered . | . . . . . . Exploration Rate (%) 32 | 3 42 26 15 87 22 Regions Visited 5 Branch Regions 3 Pre-discovered Areas 1 | . . . . 1 . Known Exits Taken . | . . . . . . Unknown Exits Taken 5 | 1 1 1 1 1 . Scrap Searched 1 | . . . . 1 . Spaces Dug . | . . . . . . Terrain Destroyed 63 | . 29 34 . . . Melee . | . . . . . . Projectile . | . . . . . . AOE 63 | . 29 34 . . . Terrain Rammed . | . . . . . . Walls Destroyed . | . . . . . . Machines Disabled . | . . . . . . Actions | -11 -10 -9 -9 -7 -6 --------- Run | Scr Mat Mat Min Zio Pro Total 1521 | 57 161 253 32 831 187 Wait 79 | . 2 4 . 56 17 Move 1322 | 44 142 200 32 767 137 Hop . | . . . . . . Pick Up 27 | 8 5 8 . 3 3 Fast Attach 1 | . . . . . 1 Attach 19 | 5 2 8 . 1 3 Detach 1 | . . 1 . . . Swap 5 | . . 1 . 2 2 Drop 8 | . . 3 . 2 3 Fire 19 | . 10 9 . . . Melee 38 | . . 19 . . 19 Ram 1 | . . . . . 1 Kick 1 | . . . . . 1 Crush . | . . . . . . Escape Stasis . | . . . . . . Rewire . | . . . . . . Trap . | . . . . . . Miscellaneous . | . . . . . . Route ------- -11/Scrapyard -10/Materials -9/Materials -9/Mines -7/Zion -6/Proximity Caves History --------- Turn | Location | Event 4 | -11/Scrapyard | Discovered new exit (range 15) 59 | -11/Scrapyard | Entered Materials 231 | -10/Materials | Discovered new exit (range 16) 276 | -10/Materials | Entered another Materials area 276 | -9/Materials | Evolved 2 slots: Power x1, Propulsion x1 312 | -9/Materials | Build established: Mutant 641 | -9/Materials | Discovered new exit (range 16) 672 | -9/Materials | Entered Mines 683 | -9/Mines | A Derelict revealed a hidden shortcut to a safe place 684 | -9/Mines | Met a Derelict bent on vengeance 711 | -9/Mines | Entered Zion 812 | -7/Zion | Given the Hacking Drone Bay 814 | -7/Zion | Found Prototype Device 816 | -7/Zion | Identified Hacking Drone Bay 913 | -7/Zion | Build established: Scavenger-Mutant 925 | -7/Zion | Learned Factory emergency access door positions 962 | -7/Zion | Learned 12 Factory zone layouts 1108 | -7/Zion | Imprinted 1110 | -7/Zion | Declared Zion's savior 1275 | -7/Zion | Found CR-A16's Pointy Stick 1657 | -7/Zion | Acquired unknown access codes intercepted by a Zionite 1670 | -7/Zion | Discovered new exit (range 12) 1696 | -7/Zion | Entered Proximity Caves 1696 | -6/Proximity Caves | Accompanied by 4 allies 1774 | -6/Proximity Caves | Attracted the attention of an 0b10 outpost 1776 | -6/Proximity Caves | Core integrity fell below 50% 1827 | -6/Proximity Caves | Lost 3 parts (1p1n1w) 1936 | -6/Proximity Caves | Core integrity fell below 20% 1946 | -6/Proximity Caves | Destroyed by L-41 Fighter with Axe Last Messages --------------- 01883_ Slug penetrates 58-O1S(M). 01886_ 8M-PX0(M) destroyed. 01886_ Slug penetrates 58-O1S(M). 01886_ 58-O1S(M) destroyed. 01889_ Slug penetrates Wall. 01889_ Hacking Drone Bay destroyed. 01923_ B-48 Gladiator destroyed. 01929_ Lgt. Treads fries itself beyond repair. 01930_ Lgt. Nuclear Core destroyed. 01932_ Axe destroyed. 01935_ Carbon-fiber Leg destroyed. 01937_ CR-A16's Pointy Stick destroyed. 01938_ Mace fries itself beyond repair. 01941_ Axe destroyed. 01941_ Carbon-fiber Leg destroyed. 01943_ Slammed into G-67 Veteran. 01943_ Destabilizing: System corrupted (+2). 01944_ Carbon-fiber Leg destroyed. 01944_ Mic. Fission Core destroyed. 01946_ Slammed into G-50 Soldier. Map ----- +----------------------------------------------------+ | ?????????????????????????????????????????????????? | | ?????????????????????????????????????????????????? | | ?????????????????????????????????????????????????? | | ?????????????????????????????????????????????????? | | ?????????????????????????????????????????????????? | | ?????????????????????????????????????????????????? | | ?????????????????????????????????????????????????? | | ?????????????????????????????????????????????????? | | ?????????????????????????????????????????????????? | | ?????????????????????????????????????????????????? | | ?????????????????????????????????????????????????? | | ?????????????????????????????????????????????????? | | ?????????????????????????????????????????????????? | | ?????????????????????????????????????????????????? | | ?????????????????????????????????????????????????? | | ?????????????????????????????????????????????????? | | ?????????????????????????????????????????????????? | | ?????????????????????????????????????????????????? | | ?????????????????????????????????????????????????? | | ?????????????????????????????????????????????????? | | ?????????????????????????????????????????????????? | | ?????????????????????????????????????????????????? | | ?????????????????????##########??????????????????? | | ?????###????????????## ##%gi #??????????????????? | | ?????# ##???????????# l ##??????????????????? | | #????# #???????????# h@####???????????????????? | | ??## #???????????### g#??????????????????????? | | ### ################ ##?????????????????????? | | # ==!#?# #?????????????????????? | | ### ##########%!### ##????????????????????? | | ### ##??##????# "## ##???????????????????? | | ## ####??## #??##*%%[# ####????????????????? | | ##?????# #?#%%!%%! #????????????????? | | ###??????# ?#[#%% ## # #????????????????? | | ##????????# ##!#! # #####????????????????? | | ##????????# # % # ##???????????????????? | | ### #???## ###++### #?????????? ???????? | | #????## + %!%/ #???????? #????????? | | ##?????## # === # #?????? #?????????? | | # ##???????## #"#""""""# ##???? ##????????? | | ?# #??# ########%######## #??? " #????????? | | ??####??# #" ![ ## "%" #????????? | | ????????# =%!%! " #?????????? | | ????##????##### * * #??????????? | | #### ##???????# ## " #??????????? | | # #???????# #### "%" #??????????? | | #???????# #??## " #??????????? | | ##???????# #??# ###??????????? | | #?????? ? ##????????????? | | ##???? ## ##?????????????? | +----------------------------------------------------+ Best States ------------- Heat Dissipation 28 Energy Generation 27 Energy Capacity 310 Matter Stores 300 Matter Capacity 300 Sight Range 16 Terrain Scan Density 10 Evasion (%) 40 Item Schematics ----------------- None Robot Schematics ------------------ None Fabricated ------------ Nothing Alien Tech Used ----------------- None Achievements -------------- One Hack Too Far Risk Taker Robot Respite The One Tourist Challenges ------------ None Game ------ Seed SlugIonicCorpse Manual? 0 Play Time 00:30:45 Cumulative 8.2 hours Start 2021.10.02 @ 08:43:10 End 2021.10.02 @ 09:10:19 Sessions 1 Manual Loads 0 Difficulty Rogue Special Mode None Game No. 14 Rogue 14 Adventurer 0 Explorer 0 Win Type - Total 0 Types 0/0/0/0/0/0/0/0/0 Lore% 7 Gallery% 15 Achievement% 3 Wizard Run 0 Options --------- ASCII 0 Keyboard 0 Movement Numpad Keybinds 0 Fullscreen 1 Font 24/Smallcaps Map View 76x50 Tactical HUD 1 Map Filters NONE Filters NONE Steam 1 RUN: d47057e7-a39b-47bd-afe0-30b37b5d645b